[Event "55th Rubinstein Memorial-C 2019"]
[Site "Polanica-Zdroj"]
[Date "2019.08.23"]
[Round "7.24"]
[White "Kosior, Jan"]
[Black "Budzisz, Adrian"]
[Result "0-1"]
[ECO "B42"]
[WhiteElo "1442"]
[BlackElo "1631"]
[Annotator "NA"]
[PlyCount "78"]
[EventDate "2019.08.17"]
[EventType "swiss"]
[EventCountry "POL"]
[SourceTitle "playchess.com"]
[Source "ChessBase"]
[SourceQuality "1"]
[TimeControl "40/5400+30:1800+30"]

1. e4 {[%emt 0:00:00]} c5 {[%emt 0:00:00]} 2. Nf3 {[%emt 0:00:00]} e6 {[%emt 0:00:00]} 3. d4 {[%emt 0:00:00]} cxd4 {[%emt 0:00:00]} 4. Nxd4 {[%emt 0:00:00]} a6 {[%emt 0:00:08]} 5. Bd3 {[%emt 0:00:00]} Nf6 {[%emt 0:00:09]} 6. O-O {[%emt 0:02:09]} d6 {[%emt 0:00:10]} 7. Be3 {[%emt 0:01:00]} Qc7 {[%emt 0:00:44]} 8. f3 {[%emt 0:00:41]} Nc6 {[%emt 0:00:31]} 9. Qe2 {[%emt 0:06:23]} Be7 {[%emt 0:01:51]} 10. c4 {[%emt 0:00:30]} Ne5 {[%emt 0:00:14]} 11. Nc3 {[%emt 0:06:50]} O-O {[%emt 0:02:19]} 12. Kh1 {[%emt 0:04:47]} Nfd7 {[%emt 0:08:41]} 13. f4 {[%emt 0:04:50]} Nxd3 {[%emt 0:00:49]} 14. Qxd3 {[%emt 0:00:07]} b6 {[%emt 0:00:27]} 15. b3 {[%emt 0:03:41]} Bb7 {[%emt 0:02:57]} 16. Qd2 {[%emt 0:02:18]} Nc5 {[%emt 0:00:46]} 17. Qc2 {[%emt 0:03:24]} Bf6 {[%emt 0:05:34]} 18. Rac1 {[%emt 0:04:05]} Rac8 {[%emt 0:02:13]} 19. f5 {[%emt 0:07:29]} Qe7 {[%emt 0:01:52]} 20. Bg1 {[%emt 0:02:43]} Qe8 {[%emt 0:08:44]} 21. Qe2 {[%emt 0:07:34]} Qe7 {[%emt 0:13:33]} 22. Qg4 {[%emt 0:08:04]} Rfe8 {[%emt 0:02:12]} 23. Rf3 {[%emt 0:16:02]} h6 {[%emt 0:08:28]} 24. Rcf1 {[%emt 0:00:22]} Nd7 {[%emt 0:01:16]} 25. Rg3 {[%emt 0:03:19]} Be5 {[%emt 0:02:04]} 26. fxe6 {[%emt 0:06:34]} fxe6 {[%emt 0:01:11]} 27. Rh3 {[%emt 0:00:30]} Nf6 {[%emt 0:01:17]} 28. Qe2 {[%emt 0:05:24]} Qf7 {[%emt 0:02:39]} 29. Qd3 {[%emt 0:03:20]} Qg6 {[%emt 0:00:50]} 30. Nde2 {[%emt 0:00:51]} b5 {[%emt 0:03:49]} 31. Nf4 {[%emt 0:01:19]} Qh7 {[%emt 0:00:45]} 32. Nh5 {[%emt 0:01:07]} Nxe4 {[%emt 0:00:35]} 33. Nxe4 {[%emt 0:00:25]} Bxe4 {[%emt 0:00:05]} 34. Qd2 {[%emt 0:00:31]} bxc4 {[%emt 0:00:29]} 35. Ng3 {[%emt 0:00:24]} Bd5 {[%emt 0:02:18]} 36. bxc4 {[%emt 0:00:42]} Rxc4 {[%emt 0:00:13]} 37. Qf2 {[%emt 0:00:03]} Qg6 {[%emt 0:01:09]} 38. Ne2 Rc2 {[%emt 0:00:31]} 39. Qe3 {[%emt 0:01:29]} Qxg2# {[%emt 0:00:08]} 0-1

[Event "55th Rubinstein Memorial-C 2019"]
[Site "Polanica-Zdroj"]
[Date "2019.08.23"]
[Round "7.25"]
[White "Bugaj, Hanna"]
[Black "Jaroszuk, Marcin"]
[Result "1-0"]
[ECO "A84"]
[WhiteElo "1622"]
[BlackElo "1496"]
[Annotator "NA"]
[PlyCount "57"]
[EventDate "2019.08.17"]
[EventType "swiss"]
[EventCountry "POL"]
[SourceTitle "playchess.com"]
[Source "ChessBase"]
[SourceQuality "1"]
[TimeControl "40/5400+30:1800+30"]

1. d4 {[%emt 0:00:00]} e6 {[%emt 0:00:00]} 2. c4 {[%emt 0:00:00]} f5 {[%emt 0:00:00]} 3. Nc3 {[%emt 0:00:30]} Nf6 {[%emt 0:00:00]} 4. Nf3 {[%emt 0:00:57]} Bb4 {[%emt 0:00:02]} 5. Bd2 {[%emt 0:00:43]} O-O {[%emt 0:00:11]} 6. g3 {[%emt 0:00:52]} d6 {[%emt 0:01:07]} 7. Bg2 {[%emt 0:01:24]} c6 {[%emt 0:02:35]} 8. O-O {[%emt 0:01:32]} Qe7 {[%emt 0:04:11]} 9. Qb3 {[%emt 0:07:36]} Bxc3 {[%emt 0:02:12]} 10. Bxc3 {[%emt 0:01:06]} Ne4 {[%emt 0:02:03]} 11. Bb4 {[%emt 0:03:39]} c5 {[%emt 0:04:23]} 12. dxc5 {[%emt 0:03:04]} dxc5 {[%emt 0:01:33]} 13. Bc3 {[%emt 0:01:47]} Nd7 {[%emt 0:07:04]} 14. Ne5 {[%emt 0:06:11]} Nxc3 {[%emt 0:04:44]} 15. Qxc3 {[%emt 0:00:06]} Rb8 {[%emt 0:15:44]} 16. Rad1 {[%emt 0:04:11]} Rd8 {[%emt 0:03:46]} 17. f4 {[%emt 0:03:42]} Nf6 {[%emt 0:02:49]} 18. Rd2 {[%emt 0:04:53]} Bd7 {[%emt 0:10:09]} 19. Rfd1 {[%emt 0:02:39]} Be8 {[%emt 0:00:40]} 20. Rxd8 {[%emt 0:07:11]} Rxd8 {[%emt 0:00:07]} 21. Rxd8 {[%emt 0:00:18]} Qxd8 {[%emt 0:00:07]} 22. Bxb7 {[%emt 0:01:32]} Qd1+ {[%emt 0:04:26]} 23. Kf2 {[%emt 0:00:18]} Bh5 {[%emt 0:00:54]} 24. Qd3 {[%emt 0:03:11]} Qc1 {[%emt 0:06:14]} 25. Qd8+ {[%emt 0:03:13]} Ne8 {[%emt 0:00:07]} 26. Bf3 {[%emt 0:11:22]} Bf7 {[%emt 0:00:51]} 27. Bc6 {[%emt 0:00:50]} g6 {[%emt 0:06:22]} 28. Bxe8 {[%emt 0:00:36]} Qh1 {[%emt 0:03:32]} 29. Bc6+ 1-0

[Event "55th Rubinstein Memorial-C 2019"]
[Site "Polanica-Zdroj"]
[Date "2019.08.23"]
[Round "7.26"]
[White "Celebias, Filip"]
[Black "Mytnik, Kinga"]
[Result "1/2-1/2"]
[ECO "B07"]
[WhiteElo "1336"]
[BlackElo "1620"]
[Annotator "NA"]
[PlyCount "77"]
[EventDate "2019.08.17"]
[EventType "swiss"]
[EventCountry "POL"]
[SourceTitle "playchess.com"]
[Source "ChessBase"]
[SourceQuality "1"]
[TimeControl "40/5400+30:1800+30"]

1. e4 {[%emt 0:00:00]} d6 {[%emt 0:00:00]} 2. d4 {[%emt 0:00:00]} Nf6 {[%emt 0:00:00]} 3. Nc3 {[%emt 0:00:00]} Nbd7 {[%emt 0:00:11]} 4. g4 {[%emt 0:01:39]} h6 {[%emt 0:01:21]} 5. g5 {[%emt 0:00:20]} hxg5 {[%emt 0:00:52]} 6. Bxg5 {[%emt 0:00:08]} c6 {[%emt 0:01:31]} 7. f4 {[%emt 0:12:43]} Qb6 {[%emt 0:06:45]} 8. Qd2 {[%emt 0:14:15]} e5 {[%emt 0:02:19]} 9. Nf3 {[%emt 0:08:02]} exd4 {[%emt 0:03:19]} 10. Nxd4 {[%emt 0:06:23]} Nc5 {[%emt 0:05:23]} 11. Bg2 {[%emt 0:03:52]} Bg4 {[%emt 0:15:33]} 12. h3 {[%emt 0:09:55]} Bh5 {[%emt 0:01:00]} 13. e5 {[%emt 0:12:17]} dxe5 {[%emt 0:09:48]} 14. fxe5 {[%emt 0:00:07]} Nfd7 {[%emt 0:09:41]} 15. Qe3 {[%emt 0:07:39]} Ne6 {[%emt 0:03:14]} 16. Nxe6 {[%emt 0:04:48]} Qxe3+ {[%emt 0:00:12]} 17. Bxe3 {[%emt 0:00:05]} fxe6 {[%emt 0:00:03]} 18. Bf4 {[%emt 0:02:36]} Bb4 {[%emt 0:01:27]} 19. O-O {[%emt 0:01:08]} Bc5+ {[%emt 0:01:24]} 20. Kh2 {[%emt 0:01:00]} Bd4 {[%emt 0:01:28]} 21. Rae1 {[%emt 0:02:47]} O-O-O {[%emt 0:01:38]} 22. Ne4 {[%emt 0:07:13]} Bxb2 {[%emt 0:07:27]} 23. Nd6+ {[%emt 0:01:56]} Kc7 {[%emt 0:00:33]} 24. Rb1 {[%emt 0:01:09]} Bxe5 {[%emt 0:02:40]} 25. Nxb7 {[%emt 0:01:10]} Bxf4+ {[%emt 0:00:29]} 26. Rxf4 {[%emt 0:00:07]} Rb8 {[%emt 0:00:53]} 27. Rc4 {[%emt 0:01:17]} Ne5 {[%emt 0:00:50]} 28. Rcb4 {[%emt 0:00:09]} Nf3+ {[%emt 0:03:51]} 29. Kg3 {[%emt 0:00:43]} Ng5 {[%emt 0:04:01]} 30. Kf4 {[%emt 0:00:48]} Nf7 {[%emt 0:01:38]} 31. Na5 {[%emt 0:00:30]} Rxb4+ {[%emt 0:00:44]} 32. Rxb4 {[%emt 0:00:06]} Nd8 {[%emt 0:00:19]} 33. Rc4 {[%emt 0:00:35]} Rf8+ {[%emt 0:00:58]} 34. Ke3 {[%emt 0:00:25]} Be8 {[%emt 0:00:58]} 35. Rg4 {[%emt 0:00:28]} Rf7 {[%emt 0:01:57]} 36. Nc4 {[%emt 0:00:30]} Re7 {[%emt 0:02:14]} 37. h4 {[%emt 0:00:42]} Bh5 {[%emt 0:00:25]} 38. Rg5 {[%emt 0:00:29]} g6 {[%emt 0:01:06]} 39. Ra5 {[%emt 0:00:29]} 1/2-1/2

[Event "55th Rubinstein Memorial-C 2019"]
[Site "Polanica-Zdroj"]
[Date "2019.08.23"]
[Round "7.27"]
[White "Wrona, Florian"]
[Black "Bialik, Nikodem"]
[Result "1-0"]
[ECO "C01"]
[WhiteElo "1606"]
[BlackElo "1472"]
[Annotator "NA"]
[PlyCount "49"]
[EventDate "2019.08.17"]
[EventType "swiss"]
[EventCountry "POL"]
[SourceTitle "playchess.com"]
[Source "ChessBase"]
[SourceQuality "1"]
[TimeControl "40/5400+30:1800+30"]

1. e4 {[%emt 0:00:00]} e6 {[%emt 0:00:38]} 2. d4 {[%emt 0:00:00]} d5 {[%emt 0:00:12]} 3. exd5 {[%emt 0:00:00]} exd5 {[%emt 0:00:06]} 4. Nf3 {[%emt 0:00:00]} Bd6 {[%emt 0:00:51]} 5. h3 {[%emt 0:00:55]} Be6 {[%emt 0:02:29]} 6. Bd3 {[%emt 0:00:55]} Nf6 {[%emt 0:01:01]} 7. O-O {[%emt 0:03:28]} O-O {[%emt 0:02:20]} 8. Nc3 {[%emt 0:06:20]} c6 {[%emt 0:00:45]} 9. Ne2 {[%emt 0:04:43]} Qc7 {[%emt 0:00:39]} 10. Bg5 {[%emt 0:04:03]} Nbd7 {[%emt 0:00:38]} 11. Bh4 {[%emt 0:00:54]} h6 {[%emt 0:05:24]} 12. Bg3 {[%emt 0:08:02]} Nh5 {[%emt 0:02:06]} 13. Bxd6 {[%emt 0:02:47]} Qxd6 {[%emt 0:06:07]} 14. Re1 {[%emt 0:00:30]} Rfe8 {[%emt 0:01:24]} 15. Ne5 {[%emt 0:01:28]} Nhf6 {[%emt 0:03:17]} 16. Nf4 {[%emt 0:02:45]} Kf8 {[%emt 0:01:04]} 17. c3 {[%emt 0:03:27]} Rab8 {[%emt 0:04:17]} 18. Qf3 {[%emt 0:05:35]} Qc7 {[%emt 0:06:07]} 19. Qg3 {[%emt 0:17:56]} Qb6 {[%emt 0:07:25]} 20. Nxe6+ {[%emt 0:01:39]} fxe6 {[%emt 0:07:19]} 21. Nxd7+ {[%emt 0:00:04]} Nxd7 {[%emt 0:02:36]} 22. Qd6+ {[%emt 0:00:04]} Re7 {[%emt 0:00:08]} 23. Rxe6 {[%emt 0:00:15]} Rbe8 {[%emt 0:02:42]} 24. Bg6 {[%emt 0:00:35]} c5 {[%emt 0:00:41]} 25. Qf4+ {[%emt 0:01:51]} 1-0

[Event "55th Rubinstein Memorial-C 2019"]
[Site "Polanica-Zdroj"]
[Date "2019.08.23"]
[Round "7.28"]
[White "Binkowska, Agata"]
[Black "Jaworski, Tymon"]
[Result "1-0"]
[ECO "C65"]
[WhiteElo "1896"]
[BlackElo "1598"]
[Annotator "NA"]
[PlyCount "95"]
[EventDate "2019.08.17"]
[EventType "swiss"]
[EventCountry "POL"]
[SourceTitle "playchess.com"]
[Source "ChessBase"]
[SourceQuality "1"]
[TimeControl "40/5400+30:1800+30"]

1. e4 {[%emt 0:00:00]} e5 {[%emt 0:00:31]} 2. Nf3 {[%emt 0:00:00]} Nc6 {[%emt 0:00:15]} 3. Bb5 {[%emt 0:00:13]} Nf6 {[%emt 0:01:11]} 4. d3 {[%emt 0:00:09]} d6 {[%emt 0:00:34]} 5. c3 {[%emt 0:00:10]} Be7 {[%emt 0:01:23]} 6. h3 {[%emt 0:00:11]} O-O {[%emt 0:00:22]} 7. O-O {[%emt 0:00:08]} a6 {[%emt 0:02:41]} 8. Ba4 {[%emt 0:00:08]} b5 {[%emt 0:00:11]} 9. Bc2 {[%emt 0:00:07]} Bb7 {[%emt 0:00:12]} 10. Re1 {[%emt 0:00:59]} b4 {[%emt 0:02:18]} 11. d4 {[%emt 0:10:14]} bxc3 {[%emt 0:00:43]} 12. bxc3 {[%emt 0:00:09]} exd4 {[%emt 0:00:25]} 13. Nxd4 {[%emt 0:04:33]} Rb8 {[%emt 0:12:31]} 14. Nd2 {[%emt 0:07:36]} Nd7 {[%emt 0:01:06]} 15. Rb1 {[%emt 0:10:17]} Nc5 {[%emt 0:01:05]} 16. Rxb7 {[%emt 0:05:36]} Rxb7 {[%emt 0:00:44]} 17. Nxc6 {[%emt 0:00:08]} Qd7 {[%emt 0:00:25]} 18. Nxe7+ {[%emt 0:00:09]} Qxe7 {[%emt 0:00:19]} 19. Nb3 {[%emt 0:00:31]} Nxb3 {[%emt 0:00:50]} 20. axb3 {[%emt 0:00:08]} Re8 {[%emt 0:00:29]} 21. Be3 {[%emt 0:00:23]} c6 {[%emt 0:02:20]} 22. Qd3 {[%emt 0:00:27]} Ra8 {[%emt 0:04:32]} 23. e5 {[%emt 0:00:59]} g6 {[%emt 0:01:25]} 24. exd6 {[%emt 0:00:19]} Qf8 {[%emt 0:00:23]} 25. c4 {[%emt 0:01:03]} a5 {[%emt 0:00:40]} 26. Qd2 {[%emt 0:01:16]} Rd7 {[%emt 0:00:47]} 27. c5 {[%emt 0:00:43]} h5 {[%emt 0:00:46]} 28. Bh6 {[%emt 0:00:35]} Qd8 {[%emt 0:00:20]} 29. Bg5 {[%emt 0:03:04]} Qf8 {[%emt 0:00:56]} 30. Be4 {[%emt 0:02:28]} Qc8 {[%emt 0:00:24]} 31. Qc2 {[%emt 0:01:49]} Kh7 {[%emt 0:00:11]} 32. Bf3 {[%emt 0:00:35]} Kg7 {[%emt 0:00:27]} 33. Be7 {[%emt 0:01:57]} Ra6 {[%emt 0:00:44]} 34. Qc3+ {[%emt 0:00:41]} Kh7 {[%emt 0:00:12]} 35. Qf6 {[%emt 0:00:30]} Qe8 {[%emt 0:00:40]} 36. Re5 {[%emt 0:01:04]} a4 {[%emt 0:03:08]} 37. bxa4 {[%emt 0:00:10]} Rda7 {[%emt 0:00:36]} 38. Bxh5 {[%emt 0:01:18]} Rxa4 {[%emt 0:00:29]} 39. Bf3 {[%emt 0:00:30]} Ra1+ {[%emt 0:00:39]} 40. Kh2 {[%emt 0:00:06]} R1a6 {[%emt 0:00:37]} 41. Qh4+ {[%emt 0:30:15]} Kg8 {[%emt 0:30:21]} 42. Bf6 {[%emt 0:00:06]} Qxe5+ {[%emt 0:00:14]} 43. Bxe5 {[%emt 0:00:23]} f6 {[%emt 0:00:23]} 44. Qxf6 {[%emt 0:00:09]} Rh7 {[%emt 0:00:34]} 45. Qxg6+ {[%emt 0:00:33]} Kf8 {[%emt 0:00:15]} 46. Qxh7 {[%emt 0:00:07]} Ra7 {[%emt 0:00:06]} 47. Qxa7 {[%emt 0:00:10]} Kg8 {[%emt 0:00:14]} 48. Qg7# 1-0

[Event "55th Rubinstein Memorial-C 2019"]
[Site "Polanica-Zdroj"]
[Date "2019.08.23"]
[Round "7.29"]
[White "Wierzbicki, Dawid"]
[Black "Simon, Marek"]
[Result "0-1"]
[ECO "B18"]
[WhiteElo "1598"]
[BlackElo "1879"]
[Annotator "NA"]
[PlyCount "133"]
[EventDate "2019.08.17"]
[EventType "swiss"]
[EventCountry "POL"]
[SourceTitle "playchess.com"]
[Source "ChessBase"]
[SourceQuality "1"]
[TimeControl "40/5400+30:1800+30"]

1. e4 {[%emt 0:00:00]} c6 {[%emt 0:00:00]} 2. d4 {[%emt 0:00:00]} d5 {[%emt 0:00:00]} 3. Nc3 {[%emt 0:00:00]} dxe4 {[%emt 0:00:00]} 4. Nxe4 {[%emt 0:00:00]} Bf5 {[%emt 0:00:00]} 5. Ng3 {[%emt 0:00:08]} Bg6 {[%emt 0:00:00]} 6. Nh3 {[%emt 0:00:07]} Nf6 {[%emt 0:02:47]} 7. Nf4 {[%emt 0:00:20]} e5 {[%emt 0:01:01]} 8. Nxg6 {[%emt 0:01:24]} hxg6 {[%emt 0:00:03]} 9. c3 {[%emt 0:02:00]} exd4 {[%emt 0:00:24]} 10. Qxd4 {[%emt 0:00:14]} Qxd4 {[%emt 0:00:09]} 11. cxd4 {[%emt 0:00:06]} Bb4+ {[%emt 0:00:38]} 12. Bd2 {[%emt 0:00:24]} Bxd2+ {[%emt 0:06:52]} 13. Kxd2 {[%emt 0:00:02]} O-O {[%emt 0:01:39]} 14. Bc4 {[%emt 0:03:12]} Rd8 {[%emt 0:03:50]} 15. Kc3 {[%emt 0:00:31]} Nbd7 {[%emt 0:02:05]} 16. Rhe1 {[%emt 0:02:19]} Nb6 {[%emt 0:00:41]} 17. Ne4 {[%emt 0:00:27]} Nfd5+ {[%emt 0:05:16]} 18. Bxd5 {[%emt 0:00:16]} Nxd5+ {[%emt 0:01:44]} 19. Kc4 {[%emt 0:00:03]} Nb6+ {[%emt 0:00:27]} 20. Kd3 {[%emt 0:00:17]} Rd5 {[%emt 0:03:13]} 21. Nc5 {[%emt 0:07:25]} Rad8 {[%emt 0:00:51]} 22. Nxb7 {[%emt 0:00:33]} R8d7 {[%emt 0:00:45]} 23. Re8+ {[%emt 0:01:46]} Kh7 {[%emt 0:00:02]} 24. Rc1 {[%emt 0:00:20]} Rxb7 {[%emt 0:00:28]} 25. Rxc6 {[%emt 0:00:42]} Rbd7 {[%emt 0:04:17]} 26. Re4 {[%emt 0:00:20]} g5 {[%emt 0:00:37]} 27. g4 {[%emt 0:00:56]} Rb5 {[%emt 0:11:18]} 28. b3 {[%emt 0:00:35]} Rb4 {[%emt 0:02:07]} 29. f4 {[%emt 0:02:13]} gxf4 {[%emt 0:02:42]} 30. Rxf4 {[%emt 0:00:07]} Nd5 {[%emt 0:00:38]} 31. Re4 {[%emt 0:00:49]} Rb8 {[%emt 0:02:47]} 32. Rc5 {[%emt 0:04:37]} Nb4+ {[%emt 0:03:14]} 33. Kd2 {[%emt 0:01:52]} Nxa2 {[%emt 0:02:25]} 34. Ra5 {[%emt 0:00:15]} Nb4 {[%emt 0:01:01]} 35. Rh5+ {[%emt 0:01:21]} Kg6 {[%emt 0:00:36]} 36. h4 {[%emt 0:00:05]} f6 {[%emt 0:01:18]} 37. Rc5 {[%emt 0:04:06]} Na6 {[%emt 0:05:11]} 38. Ra5 {[%emt 0:01:19]} Rb6 {[%emt 0:00:38]} 39. g5 {[%emt 0:00:15]} fxg5 {[%emt 0:01:14]} 40. Rxg5+ {[%emt 0:00:10]} Kh7 {[%emt 0:02:44]} 41. Rh5+ {[%emt 0:30:54]} Kg8 {[%emt 0:31:39]} 42. Ra5 {[%emt 0:01:05]} Nb4 {[%emt 0:02:54]} 43. Kc3 {[%emt 0:00:38]} Rc7+ {[%emt 0:02:59]} 44. Rc5 {[%emt 0:02:08]} Na6 {[%emt 0:02:14]} 45. Re8+ {[%emt 0:00:52]} Kh7 {[%emt 0:06:14]} 46. Rc8 {[%emt 0:00:45]} Nxc5 {[%emt 0:03:37]} 47. Rxc7 {[%emt 0:00:09]} Ne4+ {[%emt 0:00:16]} 48. Kd3 {[%emt 0:00:19]} Nd6 {[%emt 0:00:25]} 49. Rc3 {[%emt 0:00:32]} Nf5 {[%emt 0:01:16]} 50. h5 {[%emt 0:01:23]} Ng3 {[%emt 0:00:40]} 51. Kc2 {[%emt 0:00:52]} Nxh5 {[%emt 0:01:29]} 52. Rc5 {[%emt 0:00:02]} Nf6 {[%emt 0:03:20]} 53. Ra5 {[%emt 0:01:36]} a6 {[%emt 0:01:06]} 54. Kc3 {[%emt 0:00:15]} Ne4+ {[%emt 0:01:56]} 55. Kd3 {[%emt 0:00:58]} Nd6 {[%emt 0:00:21]} 56. Kc3 {[%emt 0:00:11]} Kh6 {[%emt 0:00:34]} 57. Re5 {[%emt 0:00:11]} g5 {[%emt 0:01:55]} 58. Re6+ {[%emt 0:00:08]} Kh5 {[%emt 0:00:17]} 59. Re7 {[%emt 0:01:03]} g4 {[%emt 0:01:31]} 60. d5 {[%emt 0:00:21]} g3 {[%emt 0:00:43]} 61. Rh7+ {[%emt 0:00:06]} Kg4 {[%emt 0:00:35]} 62. Rg7+ {[%emt 0:00:38]} Kf3 {[%emt 0:00:14]} 63. Rg8 {[%emt 0:00:01]} g2 {[%emt 0:01:59]} 64. Rf8+ {[%emt 0:00:23]} Ke3 {[%emt 0:00:13]} 65. Rg8 {[%emt 0:00:06]} Ne4+ {[%emt 0:00:15]} 66. Kc4 {[%emt 0:00:16]} Kf2 {[%emt 0:00:48]} 67. Rc8 0-1

[Event "55th Rubinstein Memorial-C 2019"]
[Site "Polanica-Zdroj"]
[Date "2019.08.23"]
[Round "7.30"]
[White "Karleszko, Karolina"]
[Black "Ziemski, Przemyslaw"]
[Result "1/2-1/2"]
[ECO "C50"]
[WhiteElo "1596"]
[BlackElo "1759"]
[Annotator "NA"]
[PlyCount "136"]
[EventDate "2019.08.17"]
[EventType "swiss"]
[EventCountry "POL"]
[SourceTitle "playchess.com"]
[Source "ChessBase"]
[SourceQuality "1"]
[TimeControl "40/5400+30:1800+30"]

1. e4 e5 2. Bc4 Bc5 3. Nf3 Nc6 4. d3 d6 5. c3 Nf6 6. O-O Bg4 7. b4 Bb6 8. a4 a5 9. Qb3 O-O 10. Be3 Qd7 11. Nbd2 Be6 12. Bxb6 cxb6 13. b5 Ne7 14. Rfe1 Rae8 15. Rad1 Ng6 16. Bxe6 Rxe6 17. d4 Qc7 18. c4 Re7 19. Rc1 Nd7 20. Qb2 Rfe8 21. Re3 h6 22. g3 Ngf8 23. Rce1 g6 24. Qc2 Ne6 25. Nb3 Kh7 26. Qc3 exd4 27. Nfxd4 Ndc5 28. Nxe6 Rxe6 29. Nxc5 dxc5 30. f3 Rd8 31. e5 Qd7 32. Qc2 Qd4 33. Kh1 Kg7 34. f4 Qd2 35. Qe4 Rd7 36. f5 gxf5 37. Qxf5 Rde7 38. Qe4 Rxe5 39. Qxe5+ Rxe5 40. Rxe5 Qc2 41. R1e4 Qxa4 42. Re7 Kf6 43. Rd7 Qa1+ 44. Kg2 Qc1 45. Rf4+ Ke6 46. Rdxf7 Qc2+ 47. Kh3 a4 48. Rxb7 a3 49. Rxb6+ Ke5 50. Ra6 a2 51. b6 Qb1 52. b7 Qxb7 53. Rxa2 Qd7+ 54. Kg2 Qc6+ 55. Kg1 Qg6 56. Re2+ Kd6 57. Rfe4 Qg5 58. Kg2 Qc1 59. Re6+ Kd7 60. Re7+ Kd8 61. R2e4 Qd2+ 62. Kh3 Qd1 63. Re2 Qd3 64. R7e4 Qf3 65. R2e3 Qf1+ 66. Kg4 Qd1+ 67. Kh3 Qf1+ 68. Kg4 Qf2 {Kf5} 1/2-1/2

[Event "55th Rubinstein Memorial-C 2019"]
[Site "Polanica-Zdroj"]
[Date "2019.08.23"]
[Round "7.31"]
[White "Gromada, Andrzej"]
[Black "Krzyzosiak, Anna"]
[Result "1-0"]
[ECO "E97"]
[WhiteElo "1721"]
[BlackElo "1590"]
[Annotator "NA"]
[PlyCount "89"]
[EventDate "2019.08.17"]
[EventType "swiss"]
[EventCountry "POL"]
[SourceTitle "playchess.com"]
[Source "ChessBase"]
[SourceQuality "1"]
[TimeControl "40/5400+30:1800+30"]

1. Nf3 {[%emt 0:00:00]} Nf6 {[%emt 0:00:00]} 2. c4 {[%emt 0:00:00]} g6 {[%emt 0:00:07]} 3. Nc3 {[%emt 0:00:17]} Bg7 {[%emt 0:00:24]} 4. e4 {[%emt 0:00:30]} d6 {[%emt 0:00:14]} 5. d4 {[%emt 0:00:07]} O-O {[%emt 0:00:12]} 6. Be2 {[%emt 0:00:07]} e5 {[%emt 0:00:17]} 7. O-O {[%emt 0:03:03]} Nc6 {[%emt 0:01:44]} 8. d5 {[%emt 0:00:32]} Ne7 {[%emt 0:03:12]} 9. b4 {[%emt 0:01:18]} Ne8 {[%emt 0:05:29]} 10. c5 {[%emt 0:07:08]} f5 {[%emt 0:07:06]} 11. Bc4 {[%emt 0:05:39]} f4 {[%emt 0:13:14]} 12. Ng5 {[%emt 0:04:07]} Nf6 {[%emt 0:08:36]} 13. f3 {[%emt 0:03:40]} h6 {[%emt 0:08:25]} 14. Ne6 {[%emt 0:00:49]} Bxe6 {[%emt 0:01:32]} 15. dxe6 {[%emt 0:00:04]} Kh7 {[%emt 0:04:29]} 16. Ba3 {[%emt 0:08:39]} g5 {[%emt 0:10:36]} 17. b5 {[%emt 0:02:25]} Ne8 {[%emt 0:11:44]} 18. Rc1 {[%emt 0:01:02]} h5 {[%emt 0:08:00]} 19. Qd3 {[%emt 0:01:06]} g4 {[%emt 0:04:29]} 20. Rfd1 {[%emt 0:00:54]} Ng6 {[%emt 0:03:45]} 21. cxd6 {[%emt 0:01:41]} cxd6 {[%emt 0:00:11]} 22. Bxd6 {[%emt 0:00:13]} Qb6+ {[%emt 0:01:54]} 23. Kh1 {[%emt 0:01:08]} Rd8 {[%emt 0:00:37]} 24. Bc5 {[%emt 0:03:05]} Rxd3 {[%emt 0:00:37]} 25. Bxb6 {[%emt 0:00:03]} Rxd1+ {[%emt 0:00:11]} 26. Rxd1 {[%emt 0:00:01]} axb6 {[%emt 0:00:10]} 27. Rd7 {[%emt 0:00:18]} gxf3 {[%emt 0:02:13]} 28. gxf3 {[%emt 0:00:03]} Nh4 {[%emt 0:01:41]} 29. Be2 {[%emt 0:00:10]} Rf6 {[%emt 0:01:55]} 30. e7 {[%emt 0:01:02]} Re6 {[%emt 0:01:18]} 31. Nd5 {[%emt 0:01:30]} Kg6 {[%emt 0:00:31]} 32. Rxb7 {[%emt 0:00:47]} Nf6 {[%emt 0:00:33]} 33. Nxb6 {[%emt 0:03:09]} Rd6 {[%emt 0:00:29]} 34. Nd5 {[%emt 0:00:23]} Re6 {[%emt 0:00:17]} 35. a4 {[%emt 0:00:29]} Kf7 {[%emt 0:00:30]} 36. e8=Q+ {[%emt 0:00:46]} Kxe8 {[%emt 0:00:19]} 37. Rxg7 {[%emt 0:00:08]} Nxd5 {[%emt 0:00:36]} 38. exd5 {[%emt 0:00:28]} Rd6 {[%emt 0:00:27]} 39. Kg1 {[%emt 0:01:54]} Rxd5 {[%emt 0:00:15]} 40. b6 {[%emt 0:00:20]} Rd8 {[%emt 0:01:07]} 41. b7 {[%emt 0:30:14]} Kf8 {[%emt 0:30:24]} 42. Rc7 {[%emt 0:00:45]} Ke8 {[%emt 0:00:31]} 43. Bb5+ {[%emt 0:00:22]} Kf8 {[%emt 0:00:20]} 44. Rc8 {[%emt 0:00:21]} Ke7 {[%emt 0:00:29]} 45. Rxd8 {[%emt 0:00:18]} 1-0

[Event "55th Rubinstein Memorial-C 2019"]
[Site "Polanica-Zdroj"]
[Date "2019.08.23"]
[Round "7.32"]
[White "Jeske, Jerzy"]
[Black "Kurtycz, Maciej"]
[Result "1-0"]
[ECO "B59"]
[WhiteElo "1547"]
[BlackElo "1689"]
[Annotator "NA"]
[PlyCount "64"]
[EventDate "2019.08.17"]
[EventType "swiss"]
[EventCountry "POL"]
[SourceTitle "playchess.com"]
[Source "ChessBase"]
[SourceQuality "1"]
[TimeControl "40/5400+30:1800+30"]

1. e4 c5 2. Nf3 Nc6 3. d4 cxd4 4. Nxd4 Nf6 5. Nc3 d6 6. Be2 e5 7. Nb3 h6 8. Be3 Be7 9. f3 Be6 10. Qd2 O-O 11. O-O a5 12. Rad1 a4 13. Nc1 a3 14. b3 Nb4 15. Nb5 d5 16. exd5 Nbxd5 17. c4 Nxe3 18. Qxe3 Nd7 19. Kh1 Qb8 20. Nd3 f5 21. Rfe1 Kh8 22. Bf1 f4 23. Qe4 Rf5 24. Nd4 Rf6 25. Nxe6 Rxe6 26. Nxf4 Nc5 27. Qd5 Rd6 28. Qxe5 Rxd1 29. Qxb8+ Rxb8 30. Rxd1 Nxb3 31. Ng6+ Kh7 32. Nxe7 Ra8 1-0

[Event "55th Rubinstein Memorial-C 2019"]
[Site "Polanica-Zdroj"]
[Date "2019.08.24"]
[Round "8.1"]
[White "Janzer, Hubert"]
[Black "Kroliczek, Gabriela"]
[Result "1-0"]
[ECO "A40"]
[WhiteElo "1803"]
[BlackElo "1787"]
[Annotator "NA"]
[PlyCount "51"]
[EventDate "2019.08.17"]
[EventType "swiss"]
[EventCountry "POL"]
[SourceTitle "playchess.com"]
[Source "ChessBase"]
[SourceQuality "1"]
[TimeControl "40/5400+30:1800+30"]

1. d4 {[%emt 0:00:00]} e6 {[%emt 0:00:06]} 2. Bf4 {[%emt 0:00:00]} f5 {[%emt 0:00:17]} 3. e3 {[%emt 0:01:15]} Nf6 {[%emt 0:00:16]} 4. Nd2 {[%emt 0:00:49]} Be7 {[%emt 0:00:12]} 5. h3 {[%emt 0:04:17]} d6 {[%emt 0:15:18]} 6. Ngf3 {[%emt 0:01:49]} O-O {[%emt 0:01:36]} 7. c3 {[%emt 0:03:51]} Ne4 {[%emt 0:13:05]} 8. Qc2 {[%emt 0:03:20]} d5 {[%emt 0:04:00]} 9. Nxe4 {[%emt 0:00:50]} fxe4 {[%emt 0:00:14]} 10. Ne5 {[%emt 0:00:29]} Nd7 {[%emt 0:00:20]} 11. O-O-O {[%emt 0:03:54]} c6 {[%emt 0:01:42]} 12. Be2 {[%emt 0:09:42]} Nxe5 {[%emt 0:00:39]} 13. dxe5 {[%emt 0:00:07]} Qa5 {[%emt 0:03:10]} 14. Kb1 {[%emt 0:00:48]} b5 {[%emt 0:00:11]} 15. f3 {[%emt 0:00:27]} exf3 {[%emt 0:01:07]} 16. gxf3 {[%emt 0:00:13]} Bd7 {[%emt 0:00:40]} 17. Bd3 {[%emt 0:00:21]} g6 {[%emt 0:00:03]} 18. Bxg6 {[%emt 0:00:27]} Rf5 {[%emt 0:02:28]} 19. Bxf5 {[%emt 0:00:29]} exf5 {[%emt 0:00:02]} 20. Qg2+ {[%emt 0:00:11]} Kf7 {[%emt 0:00:42]} 21. Rhg1 {[%emt 0:00:10]} Rf8 {[%emt 0:00:57]} 22. Qg7+ {[%emt 0:00:12]} Ke8 {[%emt 0:00:03]} 23. Qxh7 {[%emt 0:00:09]} b4 {[%emt 0:01:12]} 24. Rg7 {[%emt 0:01:02]} Qc5 {[%emt 0:00:04]} 25. cxb4 {[%emt 0:01:29]} Qxb4 {[%emt 0:01:37]} 26. a3 {[%emt 0:00:12]} 1-0